fUSD/lending_fUSD_20240109
["ID","MTS","AMOUNT","RATE_DAILY","PERIOD"]
[310928704,1704822678530,-1333.2,0.00041095,30]
[310928705,1704822678550,-593.34,0.00041095,30]
[310928706,1704822678570,-1539.75,0.00041095,30]
[310928707,1704822678590,-500.0,0.00041095,30]
[310928708,1704822678608,-1120.58,0.00041095,30]
[310928709,1704822678625,-500.0,0.00041095,30]
[310928710,1704822678643,-500.0,0.00041095,30]
[310928711,1704822678662,-500.0,0.00041095,30]
[310928712,1704822678681,-500.0,0.00041095,30]
[310928713,1704822678700,-577.44,0.00041095,30]
[310928714,1704822678717,-717.62,0.00041095,30]
[310928715,1704822678734,-2132.61,0.00041095,30]
[310928716,1704822678751,-2334.2,0.00041095,30]
[310928717,1704822678767,-500.0,0.00041095,30]
[310928718,1704822678793,-2030.29,0.00041095,30]
[310928719,1704822678810,-500.0,0.00041095,30]
[310928720,1704822678826,-500.0,0.00041095,30]
[310928721,1704822678842,-820.59,0.00041095,30]
[310928722,1704822678858,-500.0,0.00041095,30]
[310928723,1704822678879,-500.0,0.00041095,30]
[310928724,1704822678897,-591.39355699,0.00041095,3]
[310928725,1704822678918,-500.0,0.00041095,30]
[310928726,1704822678940,-500.0,0.00041095,30]
[310928727,1704822678959,-500.0,0.00041095,30]
[310928728,1704822678976,-500.0,0.00041095,30]
[310928729,1704822678995,-648.37,0.00041095,30]
[310928730,1704822679012,-500.0,0.00041095,30]
[310928731,1704822679029,-2212.18,0.00041095,30]
[310928732,1704822679047,-500.0,0.00041095,30]
[310928733,1704822679063,-500.0,0.00041095,30]
[310928734,1704822679079,-505.63870032,0.00041095,30]
[310928735,1704822679097,-500.0,0.00041095,30]
[310928736,1704822679114,-500.0,0.00041095,30]
[310928737,1704822679130,-500.0,0.00041095,30]
[310928738,1704822679146,-500.0,0.00041095,30]
[310928739,1704822679162,-500.0,0.00041095,30]
[310928740,1704822679180,-500.0,0.00041095,30]
[310928741,1704822679199,-1957.26,0.00041095,30]
[310928742,1704822679216,-3000.0,0.00041095,120]
[310928743,1704822679232,-500.0,0.00041095,30]
[310928744,1704822679249,-500.0,0.00041095,30]
[310928745,1704822679265,-500.0,0.00041095,30]
[310928746,1704822679281,-500.0,0.00041095,30]
[310928747,1704822679297,-789.94,0.00041095,7]
[310928748,1704822679315,-500.0,0.00041095,30]
[310928749,1704822679331,-524.13,0.00041095,30]
[310928750,1704822679347,-1295.45,0.00041095,30]
[310928751,1704822679371,-500.0,0.00041095,30]
[310928752,1704822679388,-500.0,0.00041095,30]
[310928753,1704822679406,-774.08,0.00041095,30]
[310928754,1704822679423,-500.0,0.00041095,30]
[310928755,1704822679442,-500.0,0.00041095,30]
[310928756,1704822679460,-500.0,0.00041095,30]
[310928757,1704822679477,-500.0,0.00041095,30]
[310928758,1704822679497,-500.0,0.00041095,30]
[310928759,1704822679515,-500.0,0.00041095,30]
[310928760,1704822679533,-500.0,0.00041095,30]
[310928761,1704822679551,-500.0,0.00041095,30]
[310928762,1704822679569,-500.0,0.00041095,30]
[310928763,1704822679585,-500.0,0.00041095,30]
[310928764,1704822679602,-500.0,0.00041095,30]
[310928765,1704822679620,-500.0,0.00041095,30]
[310928766,1704822679637,-329.56358277,0.00041095,30]
[310928767,1704822679657,-500.0,0.00041095,30]
[310928768,1704822679675,-1177.5,0.00041095,30]
[310928769,1704822679696,-846.58,0.00041095,30]
[310928770,1704822679713,-626.38,0.00041095,30]
[310928771,1704822679731,-1523.1,0.00041095,30]
[310928772,1704822679748,-1815.37,0.00041095,30]
[310928773,1704822679766,-1680.4,0.00041095,30]
[310928774,1704822679784,-500.0,0.00041095,30]
[310928775,1704822679801,-500.0,0.00041095,30]
[310928776,1704822679820,-500.0,0.00041095,30]
[310928777,1704822679838,-500.0,0.00041095,30]
[310928778,1704822679856,-500.0,0.00041095,30]
[310928779,1704822679875,-1453.99,0.00041095,30]
[310928780,1704822679911,-500.0,0.00041095,30]
[310928781,1704822679938,-500.0,0.00041095,30]
[310928782,1704822679961,-522.28,0.00041095,30]
[310928783,1704822679981,-500.0,0.00041095,30]
[310928784,1704822680002,-741.95,0.00041095,30]
[310928785,1704822680023,-2160.84,0.00041095,30]
[310928786,1704822680044,-500.0,0.00041095,30]
[310928787,1704822680066,-500.0,0.00041095,30]
[310928788,1704822680086,-500.0,0.00041095,30]
[310928789,1704822680110,-1117.93,0.00041095,30]
[310928790,1704822680129,-976.55,0.00041095,30]
[310928791,1704822680149,-500.0,0.00041095,30]
[310928792,1704822680169,-500.0,0.00041095,30]
[310928793,1704822680189,-785.61,0.00041095,30]
[310928794,1704822680208,-602.19,0.00041095,30]
[310928795,1704822680228,-634.94,0.00041095,30]
[310928796,1704822680248,-634.94,0.00041095,30]
[310928797,1704822680268,-500.0,0.00041095,30]
[310928798,1704822680287,-634.94,0.00041095,30]
[310928799,1704822680306,-634.94,0.00041095,30]
[310928800,1704822680324,-634.94,0.00041095,30]
[310928801,1704822680342,-500.0,0.00041095,30]
[310928802,1704822680360,-634.94,0.00041095,30]
[310928803,1704822680379,-500.0,0.00041095,30]
[310928804,1704822680396,-634.94,0.00041095,30]
[310928805,1704822680412,-634.94,0.00041095,30]
[310928806,1704822680432,-634.94,0.00041095,30]
[310928807,1704822680452,-634.94,0.00041095,30]
[310928808,1704822680467,-500.0,0.00041095,30]
[310928809,1704822680477,-634.94,0.00041095,30]
[310928810,1704822680487,-634.94,0.00041095,30]
[310928811,1704822680496,-634.94,0.00041095,30]
[310928812,1704822680507,-634.94,0.00041095,30]
[310928813,1704822680517,-1722.63,0.00041095,30]
[310928814,1704822680874,-634.94,0.00041095,30]
[310928815,1704822680901,-634.94,0.00041095,30]
[310928816,1704822680912,-625.26,0.00041095,30]
[310928817,1704822680925,-634.94,0.00041095,30]
[310928818,1704822680934,-634.94,0.00041095,30]
[310928819,1704822680945,-634.94,0.00041095,30]
[310928820,1704822680955,-634.94,0.00041095,30]
[310928821,1704822680965,-500.0,0.00041095,30]
[310928822,1704822680975,-634.94,0.00041095,30]
[310928823,1704822680985,-500.0,0.00041095,30]
[310928824,1704822680996,-634.94,0.00041095,30]
[310928825,1704822681007,-500.0,0.00041095,30]
[310928826,1704822681017,-634.94,0.00041095,30]
[310928827,1704822681028,-1678.63,0.00041095,30]
[310928828,1704822681038,-635.16994048,0.00041095,30]
[310928829,1704822681049,-500.0,0.00041095,30]
[310928830,1704822681059,-649.03,0.00041095,30]
[310928831,1704822681070,-534.61,0.00041095,30]
[310928832,1704822681080,-500.0,0.00041095,30]
[310928833,1704822681089,-500.0,0.00041095,30]
[310928834,1704822681101,-1131.06,0.00041095,30]
[310928835,1704822681111,-500.0,0.00041095,30]
[310928836,1704822681122,-500.0,0.00041095,30]
[310928837,1704822681132,-500.0,0.00041095,30]
[310928838,1704822681143,-1859.73,0.00041095,30]
[310928839,1704822681153,-500.0,0.00041095,30]
[310928840,1704822681164,-500.0,0.00041095,30]
[310928841,1704822681173,-500.0,0.00041095,30]
[310928842,1704822681183,-2434.09,0.00041095,30]
[310928843,1704822681195,-500.0,0.00041095,30]
[310928844,1704822681205,-511.30655486,0.00041095,30]
[310928845,1704822681215,-582.98062894,0.00041095,30]
[310928846,1704822681225,-709.81,0.00041095,30]
[310928847,1704822681236,-500.0,0.00041095,30]
[310928848,1704822681247,-500.0,0.00041095,30]
[310928849,1704822681257,-500.0,0.00041095,30]
[310928850,1704822681268,-500.0,0.00041095,30]
[310928851,1704822681278,-500.6819878,0.00041095,7]
[310928852,1704822681287,-500.0,0.00041095,30]
[310928853,1704822681298,-1393.92,0.00041095,30]
[310928854,1704822681309,-500.0,0.00041095,30]
[310928855,1704822681320,-2143.09,0.00041095,30]
[310928856,1704822681330,-500.0,0.00041095,30]
[310928857,1704822681341,-500.0,0.00041095,30]
[310928858,1704822681351,-500.0,0.00041095,30]
[310928859,1704822681361,-1175.4,0.00041095,30]
[310928860,1704822681371,-500.0,0.00041095,30]
[310928861,1704822681381,-500.0,0.00041095,30]
[310928862,1704822681391,-911.8,0.00041095,30]
[310928863,1704822681403,-500.0,0.00041095,30]
[310928864,1704822681414,-2361.89,0.00041095,30]
[310928865,1704822681425,-2000.0,0.00041095,30]
[310928866,1704822681435,-500.90969898,0.00041095,30]
[310928867,1704822681447,-500.0,0.00041095,30]
[310928868,1704822681457,-1811.74,0.00041095,30]
[310928869,1704822681472,-500.0,0.00041095,30]
[310928870,1704822681484,-651.7,0.00041095,30]
[310928871,1704822681494,-1064.25,0.00041095,30]
[310928872,1704822681504,-2616.95,0.00041095,30]
[310928873,1704822681514,-500.0,0.00041095,30]
[310928874,1704822681526,-500.0,0.00041095,7]
[310928875,1704822681536,-1225.92,0.00041095,30]
[310928876,1704822681546,-558.53,0.00041095,30]
[310928877,1704822681556,-867.77,0.00041095,30]
[310928878,1704822681567,-500.0,0.00041095,30]
[310928879,1704822681578,-1715.96,0.00041095,30]
[310928880,1704822681588,-938.31,0.00041095,30]
[310928881,1704822681599,-930.54,0.00041095,30]
[310928882,1704822681610,-500.0,0.00041095,30]
[310928883,1704822681621,-3610.35,0.00041095,30]
[310928884,1704822681632,-572.6103519,0.00041095,30]
[310928885,1704822681642,-1620.01,0.00041095,30]
[310928886,1704822681652,-500.0,0.00041095,30]
[310928887,1704822681664,-500.0,0.00041095,30]
[310928888,1704822681674,-500.0,0.00041095,30]
[310928889,1704822681685,-1230.33,0.00041095,30]
[310928890,1704822681696,-500.0,0.00041095,30]
[310928891,1704822681706,-500.0,0.00041095,30]
[310928892,1704822681716,-500.0,0.00041095,30]
[310928893,1704822681727,-500.0,0.00041095,30]
[310928894,1704822681737,-825.9,0.00041095,30]
[310928895,1704822681747,-500.0,0.00041095,30]
[310928896,1704822681758,-500.0,0.00041095,30]
[310928897,1704822681768,-500.0,0.00041095,30]
[310928898,1704822681780,-500.0,0.00041095,5]
[310928899,1704822681791,-47067.85,0.00041095,30]
[310928900,1704822681801,-2088.17,0.00041095,30]
[310928901,1704822681811,-772.41,0.00041095,30]
[310928902,1704822681821,-500.0,0.00041095,30]
[310928903,1704822681831,-500.0,0.00041095,30]
[310928904,1704822681841,-500.0,0.00041095,30]
[310928905,1704822681851,-617.74,0.00041095,30]
[310928906,1704822681862,-500.0,0.00041095,30]
[310928907,1704822681872,-500.0,0.00041095,30]
[310928908,1704822681883,-500.0,0.00041095,30]
[310928909,1704822681893,-500.0,0.00041095,30]
[310928910,1704822681903,-635.57,0.00041095,30]
[310928911,1704822681913,-607.62,0.00041095,30]
[310928912,1704822681923,-500.0,0.00041095,30]
[310928913,1704822681933,-639.75,0.00041095,30]
[310928914,1704822681944,-500.0,0.00041095,30]
[310928915,1704822681954,-9711.74,0.00041095,30]
[310928916,1704822681964,-500.0,0.00041095,30]
[310928917,1704822681974,-1279.97,0.00041095,30]
[310928918,1704822681984,-2008.91,0.00041095,30]
[310928919,1704822681997,-500.0,0.00041095,30]
[310928920,1704822682008,-500.0,0.00041095,30]
[310928921,1704822682018,-500.0,0.00041095,30]
[310928922,1704822682029,-519.17965098,0.00041095,30]
[310928923,1704822682039,-500.0,0.00041095,30]
[310928924,1704822682049,-2385.47,0.00041095,30]
[310928925,1704822682061,-187.43307626,0.00041095,30]
[310928926,1704822682072,-1000.0,0.00041095,30]
[310928927,1704822682082,-625.83,0.00041095,30]
[310928928,1704822682092,-1531.31,0.00041095,30]
[310928929,1704822682102,-500.0,0.00041095,30]
[310928930,1704822682112,-500.0,0.00041095,30]
[310928931,1704822682123,-500.0,0.00041095,30]
[310928932,1704822682133,-500.0,0.00041095,30]
[310928933,1704822682144,-500.0,0.00041095,30]
[310928934,1704822682155,-5818.31,0.00041095,30]
[310928935,1704822682165,-504.54,0.00041095,30]
[310928936,1704822682181,-500.0,0.00041095,30]
[310928937,1704822682192,-2227.07,0.00041095,30]
[310928938,1704822682203,-500.0,0.00041095,30]
[310928939,1704822682213,-500.0,0.00041095,30]
[310928940,1704822682223,-500.0,0.00041095,30]
[310928941,1704822682234,-500.0,0.00041095,30]
[310928942,1704822682244,-557.01526056,0.00041095,30]
[310928943,1704822682255,-500.0,0.00041095,30]
[310928944,1704822682266,-500.0,0.00041095,30]
[310928945,1704822682276,-500.0,0.00041095,30]
[310928946,1704822682286,-1067.05,0.00041095,30]
[310928947,1704822682296,-500.0,0.00041095,30]
[310928948,1704822682307,-500.0,0.00041095,30]
[310928949,1704822682318,-500.0,0.00041095,30]
[310928950,1704822682328,-500.0,0.00041095,30]
[310928951,1704822682340,-500.0,0.00041095,30]
[310928952,1704822682351,-1943.97,0.00041095,30]
[310928953,1704822682361,-7418.59,0.00041095,30]
[310928954,1704822682372,-506.36194637,0.00041095,30]
[310928955,1704822682382,-500.0,0.00041095,30]
[310928956,1704822682393,-500.0,0.00041095,30]
[310928957,1704822682404,-534.35420648,0.00041095,30]
[310928958,1704822682413,-500.0,0.00041095,30]
[310928959,1704822682424,-500.0,0.00041095,30]
[310928960,1704822682434,-500.0,0.00041095,30]
[310928961,1704822682444,-500.0,0.00041095,30]
[310928962,1704822682454,-894.02,0.00041095,30]
[310928963,1704822682465,-1912.66,0.00041095,30]
[310928964,1704822682478,-729.4,0.00041095,30]
[310928965,1704822682490,-2826.17,0.00041095,30]
[310928966,1704822682501,-500.0,0.00041095,30]
[310928967,1704822682512,-746.04,0.00041095,30]
[310928968,1704822682523,-1727.15,0.00041095,30]
[310928969,1704822682533,-500.0,0.00041095,30]
[310928970,1704822682542,-500.0,0.00041095,30]
[310928971,1704822682553,-500.0,0.00041095,30]
[310928972,1704822682563,-500.0,0.00041095,30]
[310928973,1704822682573,-1546.34,0.00041095,30]
[310928974,1704822682584,-800.98,0.00041095,30]
[310928975,1704822682594,-1055.45,0.00041095,30]
[310928976,1704822682604,-13152.21,0.00041095,30]
[310928977,1704822682614,-5322.78,0.00041095,30]
[310928978,1704822682625,-500.0,0.00041095,30]
[310928979,1704822682636,-500.0,0.00041095,30]
[310928980,1704822682646,-500.0,0.00041095,30]
[310928981,1704822682662,-1631.56,0.00041095,30]
[310928982,1704822682673,-500.0,0.00041095,30]
[310928983,1704822682683,-500.0,0.00041095,30]
[310928984,1704822682694,-4266.73,0.00041095,30]
[310928985,1704822682705,-828.04,0.00041095,30]
[310928986,1704822682715,-500.0,0.00041095,30]
[310928987,1704822682726,-500.0,0.00041095,30]
[310928988,1704822682736,-500.0,0.00041095,30]
[310928989,1704822682746,-500.0,0.00041095,30]
[310928990,1704822682757,-500.0,0.00041095,30]
[310928991,1704822682768,-500.0,0.00041095,30]
[310928992,1704822682777,-517.04,0.00041095,30]
[310928993,1704822682787,-2057.01,0.00041095,30]
[310928994,1704822682797,-675.39,0.00041095,30]
[310928995,1704822682808,-500.0,0.00041095,30]
[310928996,1704822682818,-500.0,0.00041095,30]
[310928997,1704822682828,-500.0,0.00041095,30]
[310928998,1704822682839,-500.0,0.00041095,30]
[310928999,1704822682851,-1487.61,0.00041095,30]
[310929000,1704822682862,-500.0,0.00041095,30]
[310929001,1704822682872,-500.0,0.00041095,30]
[310929002,1704822682883,-661.04,0.00041095,30]
[310929003,1704822682893,-987.57,0.00041095,30]
[310929004,1704822682903,-1048.77,0.00041095,30]
[310929005,1704822682913,-500.0,0.00041095,30]
[310929006,1704822682923,-1523.98,0.00041095,30]
[310929007,1704822682933,-500.0,0.00041095,30]
[310929008,1704822682944,-500.0,0.00041095,30]
[310929009,1704822682954,-3937.86,0.00041095,30]
[310929010,1704822682964,-2062.34,0.00041095,30]
[310929011,1704822682974,-500.0,0.00041095,30]
[310929012,1704822682983,-500.0,0.00041095,30]
[310929013,1704822682993,-500.0,0.00041095,30]
[310929014,1704822683004,-500.0,0.00041095,30]
[310929015,1704822683015,-2352.32,0.00041095,30]
[310929016,1704822683025,-1972.66,0.00041095,30]
[310929017,1704822683035,-500.0,0.00041095,2]
[310929018,1704822683045,-851.78,0.00041095,30]
[310929019,1704822683055,-2511.39,0.00041095,30]
[310929020,1704822683065,-500.0,0.00041095,30]
[310929021,1704822683076,-500.0,0.00041095,30]
[310929022,1704822683086,-500.0,0.00041095,30]
[310929023,1704822683096,-500.0,0.00041095,30]
[310929024,1704822683106,-500.0,0.00041095,30]
[310929025,1704822683116,-500.0,0.00041095,30]
[310929026,1704822683127,-500.0,0.00041095,30]
[310929027,1704822683136,-500.0,0.00041095,30]
[310929028,1704822683147,-500.0,0.00041095,30]
[310929029,1704822683157,-1264.22,0.00041095,30]
[310929030,1704822683167,-805.58,0.00041095,30]
[310929031,1704822683178,-500.0,0.00041095,30]
[310929032,1704822683188,-500.0,0.00041095,30]
[310929033,1704822683199,-500.0,0.00041095,30]
[310929034,1704822683209,-500.0,0.00041095,30]
[310929035,1704822683220,-500.0,0.00041095,30]
[310929036,1704822683231,-500.0,0.00041095,30]
[310929037,1704822683241,-500.0,0.00041095,30]
[310929038,1704822683251,-635.47,0.00041095,30]
[310929039,1704822683261,-500.0,0.00041095,30]
[310929040,1704822683271,-500.0,0.00041095,30]
[310929041,1704822683280,-500.0,0.00041095,30]
[310929042,1704822683290,-500.0,0.00041095,30]
[310929043,1704822683301,-500.0,0.00041095,30]
[310929044,1704822683311,-1416.21,0.00041095,30]
[310929045,1704822683320,-500.0,0.00041095,30]
[310929046,1704822683330,-500.0,0.00041095,30]
[310929047,1704822683341,-500.0,0.00041095,30]
[310929048,1704822683351,-500.0,0.00041095,30]
[310929049,1704822683361,-500.0,0.00041095,30]
[310929050,1704822683371,-237.52,0.00041095,30]
[310929051,1704822683381,-500.0,0.00041095,30]
[310929052,1704822683391,-500.0,0.00041095,30]
[310929053,1704822683401,-500.0,0.00041095,30]
[310929054,1704822683412,-500.0,0.00041095,30]
[310929055,1704822683423,-500.0,0.00041095,30]
[310929056,1704822683433,-500.0,0.00041095,30]
[310929057,1704822683444,-500.0,0.00041095,30]
[310929058,1704822683455,-500.0,0.00041095,30]
[310929059,1704822683467,-500.0,0.00041095,30]
[310929060,1704822683483,-500.0,0.00041095,30]
[310929061,1704822683494,-544.13,0.00041095,30]
[310929062,1704822683505,-1042.3,0.00041095,30]
[310929063,1704822683515,-500.0,0.00041095,30]
[310929064,1704822683525,-556.85,0.00041095,30]
[310929065,1704822683536,-529.59,0.00041095,30]
[310929066,1704822683546,-808.82,0.00041095,30]
[310929067,1704822683556,-2529.67,0.00041095,30]
[310929068,1704822683567,-500.0,0.00041095,30]
[310929069,1704822683578,-3905.38,0.00041095,30]
[310929070,1704822683588,-500.0,0.00041095,30]
[310929071,1704822683598,-500.0,0.00041095,30]
[310929072,1704822683608,-1707.29,0.00041095,30]
[310929073,1704822683618,-500.0,0.00041095,30]
[310929074,1704822683628,-757.2,0.00041095,30]
[310929075,1704822683638,-764.22,0.00041095,30]
[310929076,1704822683648,-3365.69,0.00041095,30]
[310929077,1704822683657,-1808.46,0.00041095,30]
[310929078,1704822683668,-1356.84,0.00041095,30]
[310929079,1704822683678,-5165.15,0.00041095,30]
[310929080,1704822683687,-500.0,0.00041095,30]
[310929081,1704822683699,-500.0,0.00041095,30]
[310929082,1704822683709,-500.0,0.00041095,30]
[310929083,1704822683718,-500.0,0.00041095,30]
[310929084,1704822683728,-3314.93,0.00041095,30]
[310929085,1704822683738,-500.0,0.00041095,30]
[310929086,1704822683747,-500.0,0.00041095,30]
[310929087,1704822683757,-500.0,0.00041095,30]
[310929088,1704822683767,-500.0,0.00041095,30]
[310929089,1704822683777,-500.0,0.00041095,30]
[310929090,1704822683787,-500.0,0.00041095,30]
[310929091,1704822683797,-7247.09,0.00041095,30]
[310929092,1704822683806,-500.0,0.00041095,30]
[310929093,1704822683816,-500.0,0.00041095,30]
[310929094,1704822683825,-500.0,0.00041095,30]
[310929095,1704822683835,-500.0,0.00041095,30]
[310929096,1704822683845,-1000.0,0.00041095,30]
[310929097,1704822683856,-898.87,0.00041095,30]
[310929098,1704822683866,-500.0,0.00041095,30]
[310929099,1704822683876,-500.0,0.00041095,30]
[310929100,1704822683887,-3230.31,0.00041095,30]
[310929101,1704822683896,-500.0,0.00041095,30]
[310929102,1704822683907,-500.0,0.00041095,30]
[310929103,1704822683917,-3438.41,0.00041095,30]
[310929104,1704822683927,-500.0,0.00041095,30]
[310929105,1704822683937,-500.0,0.00041095,30]
[310929106,1704822683949,-680.98,0.00041095,30]
[310929107,1704822683959,-500.0,0.00041095,30]
[310929108,1704822683969,-500.0,0.00041095,30]
[310929109,1704822683979,-500.0,0.00041095,30]
[310929110,1704822683990,-500.0,0.00041095,30]
[310929111,1704822684000,-862.72,0.00041095,30]
[310929112,1704822684010,-875.14,0.00041095,30]
[310929113,1704822684020,-500.0,0.00041095,30]
[310929114,1704822684030,-500.0,0.00041095,30]
[310929115,1704822684041,-192.53648561,0.00041095,30]
[310929116,1704822684051,-500.0,0.00041095,30]
[310929117,1704822684062,-500.0,0.00041095,30]
[310929118,1704822684072,-500.0,0.00041095,30]
[310929119,1704822684083,-342.32619829,0.00041095,30]
[310929120,1704822684093,-500.0,0.00041095,30]
[310929121,1704822684103,-1210.42,0.00041095,30]
[310929122,1704822684113,-1426.64,0.00041095,30]
[310929123,1704822684124,-5227.95,0.00041095,30]
[310929124,1704822684135,-334.77404086,0.00041095,30]
[310929125,1704822684145,-500.0,0.00041095,30]
[310929126,1704822684156,-500.0,0.00041095,30]
[310929127,1704822684166,-5726.55,0.00041095,30]
[310929128,1704822684176,-537.00013361,0.00041095,30]
[310929129,1704822684186,-500.0,0.00041095,30]
[310929130,1704822684196,-1300.13,0.00041095,30]
[310929131,1704822684206,-3378.07,0.00041095,30]
[310929132,1704822684216,-500.0,0.00041095,30]
[310929133,1704822684225,-500.0,0.00041095,30]
[310929134,1704822684235,-1055.87,0.00041095,30]
[310929135,1704822684246,-1104.5,0.00041095,30]
[310929136,1704822684255,-1672.59,0.00041095,30]
[310929137,1704822684265,-1593.8,0.00041095,30]
[310929138,1704822684275,-1672.59,0.00041095,30]
[310929139,1704822684285,-1672.59,0.00041095,30]
[310929140,1704822684295,-500.0,0.00041095,30]
[310929141,1704822684305,-1163.93,0.00041095,30]
[310929142,1704822684315,-1672.59,0.00041095,30]
[310929143,1704822684325,-1413.79,0.00041095,30]
[310929144,1704822684335,-500.0,0.00041095,30]
[310929145,1704822684347,-1672.59,0.00041095,30]
[310929146,1704822684357,-500.0,0.00041095,30]
[310929147,1704822684368,-1244.04,0.00041095,30]
[310929148,1704822684378,-1672.59,0.00041095,30]
[310929149,1704822684388,-1672.59,0.00041095,30]
[310929150,1704822684636,-1672.59,0.00041095,30]
[310929151,1704822684653,-1672.59,0.00041095,30]
[310929152,1704822684663,-1672.59,0.00041095,30]
[310929153,1704822684673,-1672.59,0.00041095,30]
[310929154,1704822684682,-1672.59,0.00041095,30]
[310929155,1704822684692,-500.0,0.00041095,30]
[310929156,1704822684703,-1672.59,0.00041095,30]
[310929157,1704822684713,-571.07,0.00041095,30]
[310929158,1704822684724,-1672.59,0.00041095,30]
[310929159,1704822684734,-528.07,0.00041095,30]
[310929160,1704822684745,-1672.59,0.00041095,30]
[310929161,1704822684755,-1396.01,0.00041095,30]
[310929162,1704822684765,-1672.59,0.00041095,30]
[310929163,1704822684775,-13468.65,0.00041095,30]
[310929164,1704822684785,-1672.59,0.00041095,30]
[310929165,1704822684795,-1672.59,0.00041095,30]
[310929166,1704822684806,-1672.59,0.00041095,30]
[310929167,1704822684816,-9852.84,0.00041095,30]
[310929168,1704822684826,-1725.71,0.00041095,30]
[310929169,1704822684836,-1672.59,0.00041095,30]
[310929170,1704822684846,-1672.59,0.00041095,30]
[310929171,1704822684856,-392.0284473,0.00041095,30]
[310929172,1704822684866,-1672.59,0.00041095,30]
[310929173,1704822684875,-1672.59,0.00041095,30]
[310929174,1704822684885,-1672.67,0.00041095,30]
[310929175,1704822684894,-3006.41,0.00041095,30]
[310929176,1704822684904,-3195.82,0.00041095,30]
[310929177,1704822684914,-871.18,0.00041095,30]
[310929178,1704822684923,-500.0,0.00041095,30]
[310929179,1704822684933,-1303.9,0.00041095,30]
[310929180,1704822684943,-545.63,0.00041095,30]
[310929181,1704822684953,-758.06,0.00041095,30]
[310929182,1704822684963,-500.0,0.00041095,30]
[310929183,1704822684973,-500.0,0.00041095,30]
[310929184,1704822684982,-1287.34,0.00041095,30]
[310929185,1704822684992,-500.0,0.00041095,30]
[310929186,1704822685001,-500.0,0.00041095,30]
[310929187,1704822685011,-500.0,0.00041095,30]
[310929188,1704822685020,-500.0,0.00041095,30]
[310929189,1704822685029,-500.0,0.00041095,30]
[310929190,1704822685040,-500.0,0.00041095,30]
[310929191,1704822685049,-503.32587075,0.00041095,30]
[310929192,1704822685059,-500.0,0.00041095,30]
[310929193,1704822685068,-500.0,0.00041095,30]
[310929194,1704822685078,-500.0,0.00041095,30]
[310929195,1704822685088,-201.27678417,0.00041095,30]
[310929196,1704822685097,-650.5,0.00041095,30]
[310929197,1704822685107,-500.0,0.00041095,30]
[310929198,1704822685117,-500.0,0.00041095,30]
[310929199,1704822685127,-1252.77,0.00041095,30]
[310929200,1704822685137,-500.0,0.00041095,30]
[310929201,1704822685147,-500.0,0.00041095,30]
[310929202,1704822685157,-2404.72,0.00041095,30]
[310929203,1704822685166,-500.0,0.00041095,30]